bitfinex/quotes_ETHUSD_20260305
["timestamp","ask_amount","ask_price","bid_price","bid_amount"]
[1772742208831,1.19644491,2089.6,2088.7,0.46818715]
[1772742210822,1.19644491,2089.6,2088.8,1.67312808]
[1772742211229,1.19644491,2089.6,2088.9,0.47626864]
[1772742211426,4.30713243,2089.8,2088.9,0.47626864]
[1772742211947,1.19826971,2089.9,2088.9,0.47626864]
[1772742212740,1.19634397,2089.7,2088.9,0.47626864]
[1772742212939,1.67671217,2089.7,2088.9,1.67304625]
[1772742213140,0.4803682,2089.6,2088.8,1.289]
[1772742213341,0.4803682,2089.6,2088.6,1.6732419]
[1772742213653,0.4803682,2089.6,2088.6,1.67322477]
[1772742214648,0.4303682,2089.6,2088.6,1.67322477]
[1772742215047,0.4803682,2089.4,2088.6,0.47626864]
[1772742215449,0.4803682,2089.4,2088.6,1.67322567]
[1772742216252,0.4803682,2089.4,2088.7,0.47626864]
[1772742217230,1.19631713,2089.8,2088.8,0.47626864]
[1772742218430,1.19631713,2089.8,2088.8,0.47726864]
[1772742218639,0.4823682,2089.7,2088.8,0.47726864]
[1772742219134,1.19640122,2089.6,2088.9,1.19680214]
[1772742219338,1.19838464,2089.7,2089.0,0.47626864]
[1772742221131,0.002,2089.7,2089.1,1.19668756]
[1772742221459,0.002,2089.7,2089.0,0.47626864]
[1772742221649,0.002,2089.7,2089.0,1.67300671]
[1772742221853,0.002,2089.7,2089.1,0.47626864]
[1772742223264,0.002,2089.7,2089.3,0.47626864]
[1772742225366,0.002,2089.9,2089.3,0.47626864]
[1772742227345,0.002,2089.9,2089.4,1.67278438]
[1772742227560,0.002,2089.9,2089.5,0.47626864]
[1772742229477,0.002,2089.9,2089.6,1.19640122]
[1772742230374,0.002,2089.9,2089.5,0.47626864]
[1772742231049,0.002,2089.9,2089.5,1.67272275]
[1772742231566,0.002,2089.9,2089.3,5.262555]
[1772742231762,0.002,2089.9,2089.4,0.47626864]
[1772742233155,0.4803682,2090.6,2089.5,0.47626864]
[1772742233382,1.67609949,2090.8,2089.6,0.47626864]
[1772742233560,1.67609949,2090.8,2089.8,0.47626864]
[1772742234247,0.002,2089.9,2089.8,0.47626864]
[1772742234445,1.67609949,2090.8,2089.8,0.47626864]
[1772742235387,0.002,2090.2,2089.8,0.47626864]
[1772742236100,1.67609949,2090.8,2090.0,0.47626864]
[1772742238727,1.19568642,2090.9,2090.2,0.47626864]
[1772742238936,0.003,2091.0,2090.2,0.47626864]
[1772742239378,1.19545035,2091.3,2090.2,0.47626864]
[1772742240228,0.49753922,2091.2,2090.2,0.47626864]
[1772742240577,1.69308223,2091.1,2090.3,1.66614555]
[1772742240773,0.49753922,2091.0,2090.1,4.37411375]
[1772742241012,0.49753922,2091.0,2090.1,2.95725258]
[1772742241615,0.49753922,2091.0,2090.1,1.76114498]
[1772742241979,0.49753922,2091.0,2089.8,0.47014498]
[1772742242210,0.49753922,2091.0,2089.6,0.47014498]
[1772742242789,0.49753922,2090.8,2089.6,0.47014498]
[1772742242990,0.49753922,2090.8,2089.5,0.001]
[1772742242991,0.49753922,2090.7,2089.5,0.001]
[1772742243403,0.49753922,2090.7,2089.5,1.19743545]
[1772742243608,0.49753922,2090.5,2089.6,0.47014498]
[1772742244322,0.49753922,2090.5,2089.5,1.19745618]
[1772742244499,0.49753922,2090.5,2089.6,0.47014498]
[1772742244699,0.49753922,2090.5,2089.6,1.66651772]
[1772742244700,1.19594336,2090.4,2089.6,1.66651772]
[1772742246119,1.69348258,2090.4,2089.6,0.47014498]
[1772742246728,0.49753922,2090.3,2089.5,0.001]
[1772742246925,1.19605779,2090.2,2089.5,0.001]
[1772742247237,0.49753922,2090.1,2089.5,0.001]
[1772742248029,0.49753922,2090.1,2089.8,0.001]
[1772742248030,3.03657766,2089.9,2089.8,0.001]
[1772742248331,0.49753922,2089.8,2089.0,0.001]
[1772742248919,0.49753922,2089.6,2089.0,0.001]
[1772742250526,0.45128638,2089.5,2089.0,0.001]
[1772742251125,1.19651574,2089.4,2089.0,0.001]
[1772742252443,1.19634397,2089.7,2089.0,0.49299961]
[1772742252602,5.23576077,2090.1,2089.0,0.49299961]
[1772742252603,1.19617224,2090.0,2089.0,0.49299961]
[1772742253141,1.19617224,2090.0,2089.1,1.19668756]
[1772742253463,0.45128638,2089.9,2089.0,1.68973272]
[1772742253635,1.19617224,2090.0,2089.1,0.49199961]
[1772742255305,4.78447439,2090.1,2089.3,0.49199961]
[1772742256262,1.64736456,2090.2,2089.3,0.49199961]
[1772742256406,1.19607818,2090.2,2089.3,0.49199961]
[1772742256709,0.06849999,2090.3,2089.3,0.49199961]
[1772742256915,1.26454316,2090.3,2089.3,0.49199961]
[1772742257326,1.26454316,2090.3,2089.5,0.49199961]
[1772742258136,0.45328638,2090.8,2089.6,0.49199961]
[1772742258313,0.002,2090.8,2089.6,0.49199961]
[1772742258640,1.19771661,2090.8,2089.7,0.49199961]
[1772742258933,0.002,2090.8,2089.7,0.49199961]
[1772742259116,1.19771941,2090.8,2089.7,0.49199961]
[1772742259318,0.002,2090.8,2089.9,0.49199961]
[1772742261319,0.002,2090.8,2090.0,1.68817185]
[1772742261515,0.002,2090.8,2090.1,0.49199961]
[1772742262336,0.002,2091.0,2090.3,0.49199961]
[1772742262536,0.002,2090.6,2090.3,0.49199961]
[1772742262745,0.002,2091.0,2090.3,0.49199961]
[1772742263441,0.002,2091.0,2090.5,0.49199961]
[1772742265012,0.002,2091.0,2090.4,1.19594336]
[1772742266018,0.002,2091.0,2090.3,5.27577305]
[1772742266843,0.002,2091.0,2090.3,1.68800018]
[1772742267144,0.002,2091.0,2090.4,0.49199961]
[1772742267640,0.002,2091.0,2090.3,1.19600057]
[1772742268158,1.19760019,2091.0,2090.2,4.78411614]
[1772742269225,1.19760019,2091.0,2090.2,5.28082074]
[1772742269846,1.19760019,2091.0,2090.3,0.47206763]
[1772742270435,1.19760019,2091.0,2090.3,1.66805113]
[1772742272275,1.19760019,2091.0,2090.3,1.66805168]
[1772742272435,1.19760019,2091.0,2090.3,1.66806591]
[1772742272654,1.66377128,2091.0,2090.3,0.47206763]
[1772742272842,1.19760019,2091.0,2090.3,1.66805513]
[1772742273062,1.19760019,2091.0,2090.4,0.47206763]
[1772742274274,0.002,2091.0,2090.5,1.19588615]
[1772742274584,0.002,2091.0,2090.3,1.66802164]
[1772742274889,0.002,2091.0,2090.4,0.47206763]
[1772742275041,0.002,2091.0,2090.1,1.66812593]
[1772742275042,0.46817109,2091.0,2090.1,1.66812593]
[1772742275238,0.46817109,2091.0,2090.2,0.47206763]
[1772742275771,0.46817109,2091.0,2090.0,2.95219635]
[1772742276272,1.66380857,2091.0,2090.1,0.47206763]
[1772742276438,1.19760419,2091.0,2090.1,0.47206763]
[1772742277060,1.19760419,2091.0,2090.2,0.001]
[1772742277366,0.002,2090.8,2090.3,0.47206763]
[1772742277737,1.66148545,2091.5,2090.6,0.47206763]
[1772742277941,0.46817109,2091.3,2090.3,0.47206763]
[1772742278746,1.66165693,2091.2,2090.3,1.66802459]
[1772742278962,0.46617109,2091.1,2090.3,1.66802459]
[1772742279539,0.46617109,2091.1,2090.2,0.001]
[1772742280164,0.46617109,2091.1,2090.2,1.19704553]
[1772742280879,0.46617109,2090.9,2090.2,0.001]
[1772742282545,1.19560019,2091.0,2090.2,0.47306763]
[1772742283252,5.24857185,2091.1,2090.3,1.19600057]
[1772742283778,0.46617109,2091.1,2090.3,1.6680682]
[1772742284864,0.46617109,2091.1,2090.2,1.19701394]
[1772742285246,1.66177128,2091.0,2090.2,1.19701394]
[1772742286243,1.66177128,2091.0,2090.2,1.66908157]
[1772742287476,1.19560019,2091.0,2090.3,0.47206763]
[1772742287649,1.66177128,2091.0,2090.3,0.47206763]
[1772742287849,1.66177128,2091.0,2090.2,1.19701394]
[1772742287850,0.46617109,2090.9,2090.2,1.19701394]
[1772742289570,1.19571455,2090.8,2090.2,0.47306763]
[1772742289778,1.66187378,2090.9,2090.4,0.001]
[1772742290149,0.002,2090.8,2090.4,0.001]
[1772742290474,0.002,2090.8,2090.4,0.47306763]
[1772742291660,0.002,2090.8,2090.5,1.19588615]
[1772742291962,1.66170445,2091.2,2090.6,0.47206763]
[1772742292274,1.6615166,2091.5,2090.6,0.47206763]
[1772742292477,0.46617109,2091.4,2090.6,0.47206763]
[1772742293651,1.19525721,2091.6,2090.8,0.47206763]
[1772742294978,0.46617109,2091.5,2090.8,0.47206763]
[1772742295604,0.003,2091.7,2090.9,0.47206763]
[1772742295882,0.003,2091.7,2091.1,0.47206763]
[1772742297787,0.003,2092.1,2091.3,0.47206763]
[1772742297961,0.003,2092.1,2091.5,0.47206763]
[1772742299865,0.003,2092.1,2091.7,0.49308749]
[1772742300456,0.003,2092.4,2091.8,0.49308749]
[1772742300887,0.47054217,2093.1,2092.0,0.49308749]
[1772742301059,0.47054217,2093.1,2092.1,1.77708749]
[1772742301670,0.47054217,2093.1,2092.1,1.284]
[1772742301898,0.47054217,2092.9,2092.1,1.284]
[1772742302187,0.47054217,2092.9,2091.9,1.68817322]
[1772742302367,0.47054217,2092.9,2091.9,0.49308749]
[1772742302978,0.47054217,2092.9,2091.6,1.284]
[1772742303184,0.47054217,2092.9,2091.4,1.68845491]
[1772742303677,0.47054217,2092.9,2091.4,1.68845424]
[1772742303876,0.47054217,2092.9,2091.5,0.49308749]
[1772742303877,0.47254217,2092.7,2091.5,0.49308749]
[1772742305961,1.6652282,2092.6,2091.7,0.49308749]
[1772742306490,0.47054217,2092.5,2091.3,0.49308749]
[1772742307469,1.19468603,2092.6,2091.3,0.49308749]
[1772742308491,0.47054217,2092.6,2091.5,0.49308749]
[1772742310697,1.19474313,2092.5,2091.6,1.19525721]
[1772742310879,1.19666138,2092.7,2091.7,0.49308749]
[1772742311402,1.19449508,2093.0,2092.1,0.49308749]
[1772742311982,0.86600514,2093.2,2092.1,0.49308749]
[1772742312310,0.47054217,2093.1,2092.1,0.49308749]
[1772742312921,1.66499988,2093.0,2092.1,1.68804085]
[1772742313206,1.19445771,2093.0,2092.1,1.68804085]
[1772742313528,0.47054217,2092.9,2092.1,1.68804085]
[1772742313705,1.19445771,2093.0,2092.2,0.49308749]
[1772742314281,0.003,2092.3,2092.2,0.49308749]
[1772742314476,1.19445771,2093.0,2092.2,0.49308749]
[1772742315003,5.24837303,2093.1,2092.2,1.68795953]
[1772742315379,1.19440064,2093.1,2092.3,0.49308749]
[1772742315917,0.86600514,2093.2,2092.3,0.49308749]
[1772742316404,2.06036903,2093.2,2092.3,0.49308749]
[1772742316601,2.5309112,2093.2,2092.3,0.49308749]
[1772742316809,0.47054217,2093.1,2092.3,0.49308749]
[1772742316977,1.66499988,2093.0,2092.1,1.68805904]
[1772742317174,1.66499988,2093.0,2092.1,0.49308749]
[1772742317606,0.86600514,2093.2,2092.3,0.49308749]
[1772742317810,0.003,2093.7,2092.4,0.81169996]
[1772742318000,0.003,2093.7,2092.6,0.49308749]
[1772742319108,0.003,2093.7,2092.8,0.49308749]
[1772742320181,0.002,2093.0,2092.8,0.49308749]
[1772742320405,0.003,2093.7,2092.8,0.49308749]
[1772742321081,1.19705836,2093.7,2092.9,1.19451478]
[1772742321281,1.19705836,2093.7,2092.8,1.68762553]
[1772742322198,1.19705836,2093.7,2092.9,0.49308749]
[1772742322424,0.003,2093.7,2092.9,0.49308749]
[1772742323212,0.003,2093.7,2093.1,0.49308749]
[1772742323790,0.47354217,2093.7,2093.0,1.19445771]
[1772742324684,0.003,2093.7,2093.1,0.49308749]
[1772742325507,0.47354217,2093.7,2092.9,4.77795808]
[1772742325815,0.47354217,2093.7,2092.9,1.19451478]
[1772742326115,0.47354217,2093.7,2092.5,1.77408749]
[1772742326285,0.47354217,2093.7,2092.5,2.96878384]
[1772742326486,0.47354217,2093.7,2092.5,1.77408749]
[1772742326814,0.47354217,2093.7,2092.5,2.96882703]
[1772742327312,0.47054217,2093.5,2092.6,0.49308749]
[1772742327610,1.19411539,2093.6,2092.6,0.49308749]
[1772742328279,1.66763562,2093.7,2092.6,0.49308749]
[1772742329088,0.48424773,2093.6,2092.6,0.49308749]
[1772742329290,1.19417243,2093.5,2092.7,1.6447614]
[1772742330725,1.64544119,2093.5,2092.7,1.6447614]
[1772742331400,1.64544308,2093.5,2092.7,1.6447614]
[1772742331781,1.19415957,2093.6,2092.8,0.49546408]
[1772742332505,1.64542833,2093.6,2092.8,0.49546408]
[1772742332710,0.45126876,2093.5,2092.5,1.77646408]
[1772742332889,0.45126876,2093.5,2092.6,1.19468603]
[1772742333290,1.19422948,2093.4,2092.6,1.19468603]
[1772742333623,0.45126876,2093.3,2092.5,2.47570172]
[1772742334320,0.45126876,2093.3,2092.5,1.281]
[1772742334915,0.45126876,2093.3,2092.5,2.47573529]
[1772742335418,0.45126876,2093.1,2092.5,1.281]
[1772742336697,1.19432297,2093.3,2092.5,1.19474142]
[1772742336897,1.19411539,2093.6,2092.6,0.49546408]
[1772742337086,0.003,2093.7,2092.8,0.49546408]
[1772742337290,1.19708733,2093.7,2092.8,0.49546408]
[1772742337690,0.003,2093.7,2092.9,1.68997886]
[1772742339018,0.45426876,2093.7,2092.9,0.49546408]
[1772742339724,1.19411539,2093.6,2093.0,1.19445771]
[1772742341597,1.64538415,2093.6,2092.9,1.68993912]
[1772742341798,0.45126876,2093.5,2092.7,2.47161693]
[1772742342495,0.45126876,2093.5,2092.7,1.277]
[1772742342696,0.45126876,2093.5,2092.3,1.19581215]
[1772742343200,0.45126876,2093.5,2092.4,0.49546408]
[1772742345028,1.64549824,2093.4,2092.5,1.69020721]
[1772742345227,0.45126876,2093.3,2092.5,1.69020721]
[1772742345527,0.45126876,2093.3,2092.4,1.19475286]
[1772742345726,0.45126876,2093.3,2092.3,0.001]
[1772742346343,0.45126876,2093.3,2092.4,0.49546408]
[1772742346497,0.45126876,2093.3,2092.3,0.001]
[1772742346700,0.45126876,2093.2,2092.3,0.001]
[1772742346902,0.45126876,2093.0,2092.3,0.001]
[1772742347211,1.19440064,2093.1,2092.3,0.49646408]
[1772742347530,0.45126876,2093.0,2092.3,0.001]
[1772742348039,0.45126876,2093.0,2092.6,0.001]
[1772742349430,0.45126876,2093.3,2092.6,0.001]
[1772742350501,1.19417243,2093.5,2092.6,0.49646408]
[1772742350831,1.64544119,2093.5,2092.6,0.49646408]
[1772742351073,1.19428653,2093.3,2092.7,1.19462894]
[1772742351199,0.45126876,2093.2,2092.6,0.001]
[1772742351521,0.45126876,2093.2,2092.6,1.19567696]
[1772742352629,0.45126876,2093.2,2092.6,1.01258988]
[1772742352930,0.45126876,2093.2,2092.4,1.1947747]
[1772742353225,1.19440064,2093.1,2092.3,5.27578927]
[1772742353528,1.64565593,2093.2,2092.4,0.49546408]
[1772742353830,0.45126876,2093.1,2092.3,1.19585733]
[1772742354805,1.19438717,2093.2,2092.4,0.49546408]
[1772742355137,5.22864311,2093.3,2092.5,1.19474313]
[1772742356457,0.45126876,2093.2,2092.5,1.19474313]
[1772742357145,0.45126876,2093.2,2092.4,5.2744366]
[1772742357146,0.45126876,2093.2,2092.4,1.69022401]
[1772742357645,1.19440064,2093.1,2092.4,1.69022401]
[1772742359621,0.45126876,2093.1,2092.4,1.19475993]
[1772742360716,0.45126876,2093.1,2092.3,1.19583218]
[1772742361118,0.45126876,2093.1,2092.3,0.001]
[1772742361331,0.45126876,2093.1,2092.3,1.19583141]
[1772742361619,1.67532314,2093.0,2092.3,1.19583141]
[1772742361818,1.67532314,2093.0,2092.5,0.001]
[1772742362235,0.002,2092.9,2092.5,0.001]
[1772742362642,0.48286543,2092.9,2092.5,0.001]
[1772742363146,0.48286543,2092.9,2092.3,0.001]
[1772742363619,1.67543729,2092.8,2092.3,0.001]
[1772742365048,0.48086543,2092.8,2092.3,0.001]
[1772742366430,1.67545242,2092.8,2092.3,0.001]
[1772742368720,0.48086543,2092.7,2092.3,0.001]
[1772742369732,0.48086543,2092.7,2092.1,0.001]
[1772742369948,0.48086543,2092.7,2092.1,1.19596695]
[1772742370319,1.19468603,2092.6,2092.1,0.001]
[1772742370547,0.48086543,2092.5,2092.1,0.001]
[1772742371825,1.19467551,2092.7,2092.1,0.001]
[1772742372026,1.19462894,2092.7,2092.1,0.001]
[1772742372336,0.48086543,2092.6,2092.1,0.001]
[1772742372543,1.19474313,2092.5,2092.1,0.001]
[1772742373053,1.19473331,2092.6,2092.1,0.001]
[1772742373243,1.19457186,2092.8,2092.1,0.45263133]
[1772742373449,0.48086543,2092.7,2092.1,0.001]
[1772742374654,0.48086543,2092.5,2092.1,0.001]
[1772742375045,1.6755255,2092.7,2092.1,0.001]
[1772742375947,1.6755255,2092.7,2092.3,0.001]
[1772742376144,1.6775255,2092.7,2092.3,0.001]
[1772742377263,0.48086543,2092.6,2092.3,0.001]
[1772742377749,0.48086543,2092.6,2092.1,0.001]
[1772742378834,1.19474313,2092.5,2092.1,0.001]
[1772742379854,5.2596949,2092.6,2092.1,0.001]
[1772742379855,0.48086543,2092.6,2092.1,0.001]
[1772742380358,0.002,2092.7,2092.1,0.45263133]
[1772742380563,1.19667432,2092.7,2092.1,0.45263133]
[1772742380866,0.002,2092.7,2092.2,1.19491444]
[1772742381853,0.002,2092.7,2092.3,0.45163133]
[1772742382564,0.002,2092.7,2092.2,1.19491444]
[1772742384878,0.002,2092.7,2092.2,1.64654577]
[1772742385247,0.48086543,2092.4,2092.1,0.001]
[1772742385586,1.19474313,2092.5,2092.1,0.001]
[1772742385587,1.1947258,2092.6,2092.1,0.45263133]
[1772742386646,1.67753796,2092.7,2092.1,0.45263133]
[1772742387362,1.67753796,2092.7,2092.1,1.64758461]
[1772742387571,1.67751064,2092.7,2092.1,1.64758461]
[1772742388389,0.002,2092.7,2092.2,0.47178763]
[1772742388681,1.19663757,2092.7,2092.2,0.47178763]
[1772742389440,0.002,2092.7,2092.2,0.47178763]
[1772742389754,0.45835293,2092.7,2092.1,0.001]
[1772742390640,0.45835293,2092.7,2092.4,0.001]
[1772742390842,0.002,2092.5,2092.4,0.001]
[1772742391044,0.45835293,2092.5,2092.4,0.001]
[1772742391540,0.45635293,2092.3,2092.0,0.001]
[1772742393284,1.65311628,2092.5,2092.0,0.001]
[1772742393593,1.65310352,2092.5,2092.0,0.001]
[1772742393969,0.45835293,2092.5,2092.0,0.001]
[1772742394289,1.65310235,2092.5,2092.0,0.001]
[1772742395502,1.19485733,2092.3,2092.0,0.001]
[1772742395992,1.65119351,2092.4,2092.0,0.001]
[1772742396161,0.45635293,2092.4,2092.0,0.001]
[1772742396354,1.65117534,2092.4,2092.0,0.001]
[1772742397471,0.45635293,2092.3,2092.0,0.001]
[1772742398089,1.65126737,2092.2,2092.0,0.001]
[1772742398992,0.45635293,2092.2,2092.0,0.001]
[1772742399305,1.19490359,2092.3,2092.0,0.001]
[1772742399514,1.65125652,2092.3,2092.0,0.001]
[1772742399962,1.19490359,2092.3,2092.0,0.001]
[1772742400168,0.45635293,2092.2,2092.0,0.001]
[1772742401296,0.45635293,2092.2,2091.9,0.001]
[1772742401897,1.19497155,2092.1,2091.9,0.001]
[1772742402877,4.77930696,2092.4,2091.9,0.001]
[1772742402878,3.25919496,2092.4,2091.9,0.001]
[1772742403073,1.19484203,2092.4,2091.9,0.47080994]
[1772742403274,1.65119496,2092.4,2091.9,0.001]
[1772742404270,1.65119496,2092.4,2092.2,0.001]
[1772742405103,0.45835293,2092.3,2092.2,0.001]
[1772742405270,0.45835293,2092.3,2092.0,0.001]
[1772742406202,1.19491444,2092.2,2092.0,0.001]
[1772742407408,1.65126737,2092.2,2092.0,0.001]
[1772742408367,4.78156684,2092.3,2092.0,0.001]
[1772742408368,0.002,2092.3,2092.0,0.001]
[1772742408582,1.19686353,2092.3,2092.0,0.001]
[1772742409381,1.19690515,2092.3,2092.0,0.001]
[1772742410890,0.45635293,2092.2,2092.0,0.001]
[1772742412895,1.65132399,2092.2,2092.0,0.001]
[1772742416245,1.19497106,2092.2,2092.0,0.001]
[1772742417137,1.65132399,2092.2,2092.0,0.001]
[1772742417434,1.65132399,2092.2,2091.7,0.47080994]
[1772742417435,1.19502868,2092.0,2091.7,0.001]
[1772742418502,1.65138161,2092.0,2091.7,0.001]
[1772742419266,0.002,2092.0,2091.7,1.19614702]
[1772742419420,0.002,2092.0,2091.7,0.47080994]
[1772742420022,0.002,2092.0,2091.8,0.46353245]
[1772742420341,0.002,2092.0,2091.7,0.001]
[1772742421154,0.002,2092.0,2091.8,0.46353245]
[1772742421929,5.26493356,2092.3,2092.0,0.46353245]
[1772742421930,0.002,2092.3,2092.0,0.46353245]
[1772742422229,1.19686413,2092.3,2091.8,0.46353245]
[1772742423160,0.002,2092.3,2091.8,0.46353245]
[1772742423337,0.002,2092.5,2091.9,0.46353245]
[1772742423538,1.1967626,2092.5,2091.9,0.46353245]
[1772742424637,0.002,2092.5,2092.0,1.65856113]
[1772742425841,0.002,2092.5,2092.1,0.46353245]
[1772742426040,0.48545044,2092.5,2092.0,0.46353245]
[1772742426787,1.68022795,2092.5,2092.0,1.658513]
[1772742427165,1.68022795,2092.5,2092.0,0.46353245]
[1772742427392,0.48345044,2092.4,2091.8,1.74153245]
[1772742427686,0.48345044,2092.4,2091.8,2.93666937]
[1772742428683,0.48345044,2092.4,2091.8,2.47313692]
[1772742428862,0.48345044,2092.4,2091.9,0.46353245]
[1772742429264,1.67830777,2092.3,2091.8,1.278]
[1772742429467,0.48345044,2092.2,2091.7,0.001]
[1772742431268,1.67840016,2092.2,2091.7,0.46453245]
[1772742431581,1.19494972,2092.2,2091.7,0.46453245]
[1772742431802,0.48345044,2092.1,2091.3,3.54060342]
[1772742431953,0.48345044,2092.0,2091.9,0.001]
[1772742432154,0.48345044,2092.0,2091.0,1.65908165]
[1772742432777,0.48345044,2092.0,2091.4,0.001]
[1772742433557,0.48345044,2091.8,2091.4,0.001]
[1772742434773,0.48345044,2091.8,2090.6,0.46353245]
[1772742434987,0.48345044,2091.4,2090.4,0.001]
[1772742435165,0.48345044,2091.2,2090.4,0.001]
[1772742435363,2.99573211,2091.2,2090.4,0.001]
[1772742435562,0.48345044,2090.9,2090.4,0.001]
[1772742435997,1.19557928,2091.1,2090.4,0.001]
[1772742436162,1.19557928,2091.1,2090.4,0.46453245]
[1772742436355,0.48345044,2091.0,2090.4,0.001]
[1772742436982,0.48345044,2091.0,2090.4,0.46453245]
[1772742437387,0.48345044,2091.0,2090.4,0.001]
[1772742437584,1.19565737,2090.9,2090.4,0.001]
[1772742437787,0.48345044,2090.9,2090.4,0.001]
[1772742438594,1.19564386,2091.0,2090.4,0.46453245]
[1772742438888,0.48345044,2090.9,2090.4,0.001]
[1772742439259,1.67899477,2091.1,2090.4,0.46453245]
[1772742439686,1.67899477,2091.1,2090.4,1.66042015]
[1772742440093,0.48345044,2091.0,2090.4,1.19693792]
[1772742440286,4.78200883,2091.2,2090.4,1.19693792]
[1772742440287,1.19548584,2091.2,2090.5,0.46353245]
[1772742440585,1.67893628,2091.2,2090.5,0.46353245]
[1772742440785,0.48345044,2091.1,2090.4,0.001]
[1772742440985,0.48345044,2091.1,2090.4,1.19694286]
[1772742441188,0.48345044,2091.1,2090.4,0.001]
[1772742441406,0.48345044,2091.1,2090.4,1.19694215]
[1772742441780,1.67905063,2091.0,2090.4,0.001]
[1772742442710,1.67898333,2091.2,2090.4,0.46453245]
[1772742443281,4.78127928,2091.5,2090.4,0.46453245]
[1772742443282,0.48345044,2091.5,2090.4,0.46453245]
[1772742443977,0.48345044,2091.5,2090.6,0.46353245]
[1772742444178,7.31425011,2091.9,2090.7,0.46353245]
[1772742444179,1.67863973,2091.8,2090.7,0.46353245]
[1772742444406,1.67863973,2091.8,2090.8,0.46353245]
[1772742444909,0.002,2091.4,2090.8,0.46353245]
[1772742445308,0.48545044,2091.4,2090.6,1.74353245]
[1772742445483,0.002,2091.4,2090.7,0.46353245]
[1772742445879,0.48545044,2091.4,2090.7,0.46353245]
[1772742446100,1.67887912,2091.3,2090.7,1.65924798]
[1772742446297,1.67887912,2091.3,2090.7,1.19571553]
[1772742446499,1.67887912,2091.3,2090.6,2.47579875]
[1772742446906,1.67887912,2091.3,2090.6,2.9393312]
[1772742447711,1.19542868,2091.3,2090.7,0.46353245]
[1772742448006,4.78350981,2091.4,2090.7,1.65925738]
[1772742448987,5.24914823,2091.4,2090.7,1.65925738]
[1772742449290,1.66300994,2091.4,2090.7,1.65925738]
[1772742450416,0.45039036,2091.3,2090.6,0.001]
[1772742450602,0.45039036,2091.3,2090.4,0.001]
[1772742450795,0.45039036,2091.3,2090.4,1.67711452]
[1772742451313,0.45039036,2091.3,2090.5,0.48018514]
[1772742451707,0.45039036,2091.3,2090.4,1.19692938]
[1772742452281,0.45039036,2091.1,2090.4,1.19692938]
[1772742452719,0.45039036,2091.1,2090.4,1.67711452]
[1772742453783,0.45039036,2091.1,2090.4,0.48118514]
[1772742454017,0.45039036,2091.1,2090.4,0.001]
[1772742454394,0.45039036,2090.9,2090.4,0.001]
[1772742456534,1.64606957,2090.9,2090.4,0.001]
[1772742456834,0.45039036,2090.9,2090.4,0.001]
[1772742457217,1.64590149,2091.2,2090.4,0.48118514]
[1772742457412,1.64590149,2091.2,2090.6,0.001]
[1772742457631,0.002,2090.9,2090.6,0.001]
[1772742458933,0.45239036,2090.9,2090.6,0.001]
[1772742459233,0.45239036,2090.9,2090.4,0.001]
[1772742459637,0.45239036,2090.9,2090.4,1.19693582]
[1772742459842,0.45239036,2090.9,2090.4,0.001]
[1772742461215,1.19571455,2090.8,2090.4,0.001]
[1772742461617,0.45039036,2090.7,2090.4,0.001]
[1772742461827,0.45039036,2090.7,2090.2,0.001]
[1772742462028,0.45039036,2090.7,2090.0,0.35268499]
[1772742462537,0.45039036,2090.7,2089.7,0.001]
[1772742462742,0.45039036,2090.6,2089.7,0.001]
[1772742463447,0.45039036,2090.4,2089.7,0.001]
[1772742464347,2.06439036,2090.4,2089.7,0.001]
[1772742464553,0.45039036,2090.3,2089.7,0.001]
[1772742465452,0.45039036,2090.1,2089.5,0.001]
[1772742465858,0.45039036,2090.1,2089.5,1.67763762]
[1772742466362,0.45039036,2090.1,2089.5,1.67764358]
[1772742466552,1.64643793,2090.3,2089.5,1.67764358]
[1772742466924,1.64643793,2090.3,2089.5,1.677642]
[1772742467142,0.45039036,2090.2,2089.5,1.677642]
[1772742467536,1.19611501,2090.1,2089.5,1.677642]
[1772742468459,1.64650537,2090.1,2089.5,1.677642]
[1772742468960,0.45039036,2090.1,2089.5,1.677642]
[1772742470234,1.64650975,2090.1,2089.5,1.677642]
[1772742470957,1.64650975,2090.1,2089.5,0.48118514]
[1772742471153,0.45039036,2090.0,2089.7,0.001]
[1772742471572,0.45039036,2090.0,2089.5,0.001]
[1772742471760,0.45039036,2090.0,2089.5,1.19744809]
[1772742471960,1.19600057,2090.3,2089.6,0.48018514]
[1772742472165,1.19600057,2090.3,2089.7,1.19634397]
[1772742472370,1.64639093,2090.3,2089.6,1.6765422]
[1772742472982,1.64639093,2090.3,2089.7,0.48018514]
[1772742473380,0.45039036,2090.5,2089.7,0.48018514]
[1772742474160,1.64633372,2090.4,2089.8,1.19628672]
[1772742474557,0.45039036,2090.4,2089.8,1.19628672]
[1772742475157,1.19767154,2090.9,2089.9,0.48018514]
[1772742475466,0.45039036,2090.8,2089.9,0.48018514]
[1772742476171,1.19577175,2090.7,2090.0,1.19617224]
[1772742476376,1.19577175,2090.7,2090.0,1.67635738]
[1772742476715,1.64614114,2090.8,2090.1,0.48018514]
[1772742477214,0.45039036,2090.8,2090.1,0.48018514]
[1772742477373,0.002,2090.9,2090.2,0.48018514]
[1772742477708,1.19766265,2090.9,2090.2,0.48018514]
[1772742478772,0.002,2090.9,2090.3,1.19600057]
[1772742479011,0.45239036,2090.9,2090.3,1.67618571]
[1772742480099,0.45239036,2090.9,2090.3,0.48018514]
[1772742480306,0.45239036,2090.9,2090.0,0.45862562]
[1772742481245,1.19766104,2090.9,2090.2,0.45862562]
[1772742481418,1.64809492,2090.9,2090.2,0.45862562]
[1772742481617,0.45043388,2090.8,2089.9,0.45862562]
[1772742482441,1.19768711,2090.9,2089.9,0.45862562]
[1772742482917,0.45043388,2090.8,2089.9,0.45862562]
[1772742483111,1.64617226,2090.8,2090.1,0.45862562]
[1772742483315,0.45043388,2090.8,2090.0,1.19617224]
[1772742483657,0.002,2090.7,2090.1,0.45862562]
[1772742484737,0.45243388,2090.7,2089.9,1.65484343]
[1772742485136,1.64626282,2090.6,2089.9,1.65484343]
[1772742486948,0.45043388,2090.6,2090.0,0.45862562]
[1772742487151,0.002,2090.7,2090.1,1.65474063]
[1772742487326,0.002,2090.7,2090.2,0.45862562]
[1772742487944,0.45243388,2090.7,2090.2,0.45862562]
[1772742488123,0.45243388,2090.7,2090.1,1.19611501]
[1772742488634,0.45243388,2090.7,2090.1,1.65474063]
[1772742488837,0.002,2090.7,2090.2,0.45862562]